bitfinex/quotes_BTCUSD_20241023
["timestamp","ask_amount","ask_price","bid_price","bid_amount"]
[1729696572273,0.92821405,66273.0,66272.0,0.000822]
[1729696572493,0.61608523,66273.0,66272.0,0.000822]
[1729696572716,0.61719664,66273.0,66272.0,0.000822]
[1729696572931,0.62719664,66273.0,66272.0,0.000822]
[1729696573156,0.51939664,66273.0,66272.0,0.000822]
[1729696573400,0.01111141,66273.0,66272.0,0.000822]
[1729696573837,0.01111187,66277.0,66272.0,0.30221881]
[1729696574059,0.0806,66286.0,66275.0,0.301772]
[1729696574060,0.22547745,66285.0,66275.0,0.301772]
[1729696574298,0.01111187,66287.0,66275.0,0.301772]
[1729696574299,0.01111187,66287.0,66280.0,0.150873]
[1729696574527,0.01111187,66284.0,66280.0,0.30137681]
[1729696574765,0.001644,66290.0,66281.0,0.150872]
[1729696575092,0.001644,66290.0,66285.0,0.150861]
[1729696575336,0.001644,66290.0,66286.0,0.15050381]
[1729696577052,0.001644,66290.0,66287.0,0.150858]
[1729696577298,0.001644,66290.0,66287.0,0.15050381]
[1729696577779,0.001644,66290.0,66288.0,0.15050381]
[1729696578020,0.001644,66290.0,66289.0,0.34371537]
[1729696578258,0.001644,66290.0,66289.0,0.49120242]
[1729696579067,0.001644,66290.0,66289.0,0.31640819]
[1729696580273,0.001644,66290.0,66289.0,0.49120242]
[1729696580786,0.001644,66290.0,66289.0,0.31640819]
[1729696581289,0.001644,66290.0,66289.0,0.30135781]
[1729696581798,0.001644,66290.0,66289.0,0.15050381]
[1729696582059,0.001644,66290.0,66289.0,0.30135781]
[1729696582301,0.001644,66290.0,66289.0,0.15050381]
[1729696582539,0.001644,66290.0,66289.0,0.30135781]
[1729696582793,0.001644,66290.0,66289.0,0.39233859]
[1729696584793,0.001644,66290.0,66289.0,0.30135781]
[1729696585040,0.001644,66290.0,66289.0,0.15050381]
[1729696586578,0.001644,66290.0,66282.0,0.22547745]
[1729696586826,0.17479423,66285.0,66274.0,0.22629945]
[1729696587063,0.001644,66290.0,66281.0,0.22547745]
[1729696587303,0.150854,66289.0,66282.0,0.15050381]
[1729696587515,0.152497,66290.0,66282.0,0.15050381]
[1729696587737,0.001644,66290.0,66282.0,0.15050381]
[1729696588215,0.152496,66290.0,66282.0,0.15050381]
[1729696588887,0.001644,66290.0,66282.0,0.15050381]
[1729696589114,0.150856,66289.0,66282.0,0.15050381]
[1729696589338,0.001644,66290.0,66282.0,0.15050381]
[1729696589339,0.1636077,66290.0,66282.0,0.15050381]
[1729696589559,0.16360949,66290.0,66282.0,0.15050381]
[1729696590299,0.150854,66289.0,66282.0,0.15050381]
[1729696591203,0.001644,66290.0,66282.0,0.15050381]
[1729696591665,0.150855,66289.0,66282.0,0.15050381]
[1729696592354,0.152496,66290.0,66282.0,0.15050381]
[1729696592579,0.150855,66289.0,66282.0,0.15050381]
[1729696592800,0.01275649,66290.0,66282.0,0.15050381]
[1729696593037,0.001644,66290.0,66285.0,0.17479423]
[1729696593285,0.001644,66290.0,66289.0,0.150854]
[1729696593495,0.001644,66290.0,66289.0,0.47615204]
[1729696597572,0.001644,66290.0,66289.0,0.51415204]
[1729696597821,0.001644,66290.0,66289.0,0.88666555]
[1729696599382,0.001648,66313.0,66312.0,0.150802]
[1729696599634,0.001648,66313.0,66312.0,0.47610004]
[1729696600955,0.001648,66313.0,66312.0,0.30130581]
[1729696601191,0.001648,66313.0,66312.0,0.15050381]
[1729696601402,0.001648,66313.0,66312.0,0.18302596]
[1729696601607,0.001648,66313.0,66312.0,0.15050381]
[1729696602040,0.001648,66313.0,66312.0,0.30130581]
[1729696602268,0.001648,66313.0,66312.0,0.15050381]
[1729696602493,0.147437,66318.0,66312.0,0.15050381]
[1729696602703,0.01112366,66320.0,66313.0,0.21079579]
[1729696602909,0.001646,66322.0,66313.0,0.21079579]
[1729696603143,0.001646,66322.0,66314.0,0.150796]
[1729696603368,0.150784,66320.0,66315.0,0.15050381]
[1729696603606,0.001646,66322.0,66316.0,0.040004]
[1729696603818,0.150782,66321.0,66317.0,0.15050381]
[1729696604033,0.001646,66322.0,66317.0,0.15050381]
[1729696604250,0.01276966,66322.0,66317.0,0.15050381]
[1729696604454,0.150782,66321.0,66317.0,0.15050381]
[1729696604665,0.15743152,66321.0,66318.0,0.09286732]
[1729696604888,0.00664952,66321.0,66318.0,0.15050381]
[1729696605307,0.15743152,66321.0,66318.0,0.15050381]
[1729696605519,0.30821452,66321.0,66318.0,0.15050381]
[1729696605767,0.150785,66320.0,66318.0,0.15050381]
[1729696605982,0.00664952,66321.0,66318.0,0.15050381]
[1729696606204,0.16355327,66322.0,66318.0,0.15050381]
[1729696606412,0.16355327,66322.0,66318.0,0.20718174]
[1729696606621,0.00664952,66321.0,66318.0,0.15050381]
[1729696607077,0.00664952,66321.0,66319.0,0.15050381]
[1729696607508,0.001646,66322.0,66319.0,0.15050381]
[1729696607725,0.001646,66322.0,66321.0,0.150781]
[1729696607957,0.001646,66322.0,66321.0,0.43877082]
[1729696608177,0.001646,66322.0,66321.0,0.43575546]
[1729696609693,0.001646,66322.0,66321.0,0.53245546]
[1729696609946,0.001646,66322.0,66321.0,0.62055546]
[1729696610375,0.001646,66322.0,66321.0,0.61555546]
[1729696611031,0.001646,66322.0,66321.0,0.43575546]
[1729696612110,0.001646,66322.0,66321.0,0.28497446]
[1729696612325,0.001646,66322.0,66321.0,0.43575546]
[1729696613183,0.001646,66322.0,66321.0,0.51645546]
[1729696613644,0.001646,66322.0,66321.0,0.43575546]
[1729696616770,0.001646,66322.0,66321.0,0.54075546]
[1729696617172,6.4e-05,66335.0,66334.0,0.150752]
[1729696617401,0.00694671,66335.0,66334.0,0.31633101]
[1729696617594,0.00694671,66335.0,66334.0,0.16557901]
[1729696618732,0.00694671,66335.0,66334.0,0.15050381]
[1729696619308,0.00694671,66335.0,66322.0,0.40527168]
[1729696619309,0.00694671,66335.0,66322.0,0.22547745]
[1729696619527,0.150757,66332.0,66330.0,0.22547745]
[1729696619749,0.150757,66332.0,66326.0,0.150769]
[1729696619750,0.301509,66333.0,66324.0,0.150773]
[1729696619975,0.00697495,66331.0,66325.0,0.24443755]
[1729696620218,0.0816,66332.0,66326.0,0.15077]
[1729696620434,0.00697495,66330.0,66327.0,0.30127081]
[1729696620657,0.0816,66332.0,66319.0,0.150786]
[1729696620658,0.00697495,66329.0,66319.0,0.150786]
[1729696620868,0.301548,66325.0,66322.0,0.22547745]
[1729696621116,0.150777,66323.0,66322.0,0.22547745]
[1729696621338,0.150777,66323.0,66319.0,0.15050381]
[1729696621339,0.00696163,66324.0,66315.0,0.22547745]
[1729696621555,0.150788,66318.0,66317.0,0.22547745]
[1729696621754,0.1807,66323.0,66307.0,0.150812]
[1729696621755,0.1508,66313.0,66307.0,0.150812]
[1729696621962,0.301559,66322.0,66308.0,0.15050381]
[1729696622170,0.150786,66319.0,66318.0,0.000822]
[1729696622639,0.01112059,66320.0,66318.0,0.000822]
[1729696622843,0.16190159,66321.0,66318.0,0.000822]
[1729696623068,0.150784,66320.0,66318.0,0.000822]
[1729696623293,0.16189961,66322.0,66318.0,0.000822]
[1729696623499,0.150782,66321.0,66318.0,0.000822]
[1729696623704,0.01111961,66322.0,66318.0,0.000822]
[1729696623912,0.16189961,66322.0,66318.0,0.000822]
[1729696624122,0.15078,66322.0,66318.0,0.000822]
[1729696624348,0.15078,66322.0,66318.0,0.06869074]
[1729696624349,0.01111961,66322.0,66318.0,0.06869074]
[1729696624557,0.001644,66323.0,66319.0,0.45207581]
[1729696624774,0.001644,66323.0,66319.0,0.15050381]
[1729696625006,0.001644,66323.0,66320.0,0.150783]
[1729696625220,0.001644,66323.0,66320.0,0.30128681]
[1729696625437,0.001644,66323.0,66320.0,0.15050381]
[1729696625881,0.001644,66323.0,66318.0,0.000822]
[1729696625882,0.150786,66319.0,66318.0,0.000822]
[1729696626329,0.001644,66323.0,66318.0,0.000822]
[1729696626536,0.001644,66323.0,66319.0,0.15050381]
[1729696626537,0.01112964,66322.0,66319.0,0.15050381]
[1729696626744,0.01112964,66321.0,66319.0,0.15050381]
[1729696626955,0.01112964,66320.0,66319.0,0.15050381]
[1729696629487,0.01806391,66320.0,66319.0,0.15050381]
[1729696629687,0.01112964,66320.0,66319.0,0.15050381]
[1729696629896,0.01806391,66320.0,66319.0,0.38420814]
[1729696630130,0.01112964,66320.0,66319.0,0.38420814]
[1729696630338,0.001644,66323.0,66319.0,0.23342214]
[1729696630546,0.01115054,66322.0,66319.0,0.15050381]
[1729696630745,0.01808481,66322.0,66319.0,0.15050381]
[1729696630976,0.01115054,66321.0,66319.0,0.15050381]
[1729696631409,0.00687361,66320.0,66319.0,0.15050381]
[1729696631612,0.01802415,66320.0,66319.0,0.23342244]
[1729696631828,0.00687361,66320.0,66319.0,0.23342244]
[1729696632270,0.01115054,66322.0,66319.0,0.23342244]
[1729696632481,0.01115054,66321.0,66319.0,0.23342244]
[1729696632702,0.00687361,66321.0,66320.0,0.05358284]
[1729696632909,0.00487361,66321.0,66320.0,0.20408665]
[1729696633126,0.01115054,66322.0,66320.0,0.20408665]
[1729696633757,0.01115054,66322.0,66320.0,0.15050381]
[1729696634639,0.452344,66321.0,66320.0,0.000822]
[1729696634853,0.534744,66321.0,66320.0,0.000822]
[1729696635068,0.54589454,66321.0,66320.0,0.000822]
[1729696638684,0.150793,66316.0,66315.0,0.21075615]
[1729696638924,0.01115054,66319.0,66315.0,0.21075615]
[1729696639137,0.16193954,66318.0,66315.0,0.23183177]
[1729696639366,0.01115054,66320.0,66316.0,0.15050381]
[1729696639607,0.04602506,66323.0,66316.0,0.15050381]
[1729696639608,0.01115054,66319.0,66316.0,0.16766175]
[1729696639833,0.04616665,66323.0,66316.0,0.16766175]
[1729696639834,0.01115054,66322.0,66316.0,0.31845275]
[1729696640072,0.01115054,66321.0,66316.0,0.15050381]
[1729696640308,0.001644,66323.0,66316.0,0.15050381]
[1729696640309,0.01115054,66322.0,66316.0,0.15050381]
[1729696640562,0.01115054,66321.0,66316.0,0.15050381]
[1729696641020,0.16193154,66321.0,66316.0,0.15050381]
[1729696641297,0.05567319,66322.0,66308.0,0.15081]
[1729696641562,0.05567319,66322.0,66306.0,0.22547745]
[1729696641563,0.301572,66319.0,66313.0,0.22547745]
[1729696641841,0.301589,66316.0,66309.0,0.15050381]
[1729696642077,0.301589,66316.0,66309.0,0.14988848]
[1729696642308,0.16194554,66315.0,66309.0,0.14988848]
[1729696642561,0.14174554,66315.0,66310.0,0.05261809]
[1729696642812,0.150792,66317.0,66311.0,0.15050381]
[1729696643058,0.301578,66318.0,66311.0,0.15050381]
[1729696643059,0.34610065,66318.0,66311.0,0.15050381]
[1729696643313,0.04452265,66319.0,66311.0,0.30130781]
[1729696643562,0.04452265,66318.0,66311.0,0.15050381]
[1729696643809,0.04452265,66318.0,66311.0,0.30130681]
[1729696644029,0.04456128,66318.0,66311.0,0.15050381]
[1729696644319,0.04456128,66318.0,66311.0,0.26350714]
[1729696644789,0.04456128,66318.0,66313.0,0.22547745]
[1729696645020,0.11140321,66324.0,66314.0,0.30129981]
[1729696645021,0.04456128,66321.0,66314.0,0.30129981]
[1729696645252,0.04456128,66322.0,66314.0,0.15050381]
[1729696645494,0.04456128,66321.0,66314.0,0.15050381]
[1729696645717,0.19534428,66321.0,66314.0,0.15050381]
[1729696645970,0.04456128,66320.0,66314.0,0.15050381]
[1729696646238,0.19534428,66321.0,66314.0,0.15050381]
[1729696646491,0.04456128,66321.0,66314.0,0.15050381]
[1729696646771,0.150784,66320.0,66314.0,0.15050381]
[1729696647734,0.150784,66320.0,66314.0,0.20497362]
[1729696647969,0.001644,66321.0,66314.0,0.20497362]
[1729696648477,0.001644,66321.0,66320.0,0.32557823]
[1729696648731,0.001644,66321.0,66320.0,0.47608204]
[1729696649441,0.001644,66321.0,66320.0,0.60168204]
[1729696649670,0.001644,66321.0,66320.0,0.73751775]
[1729696651089,0.001644,66321.0,66320.0,0.70951775]
[1729696655562,0.001644,66321.0,66320.0,1.0457952]
[1729696655818,0.001644,66321.0,66320.0,0.99511198]
[1729696656043,0.001644,66321.0,66320.0,1.10511198]
[1729696656284,0.001644,66321.0,66320.0,1.10711198]
[1729696656789,0.001644,66321.0,66320.0,1.10511198]
[1729696657023,0.001644,66321.0,66320.0,0.93031775]
[1729696657486,0.001644,66321.0,66320.0,0.93231775]
[1729696657959,0.00116317,66321.0,66320.0,1.10211198]
[1729696658671,0.00116317,66321.0,66320.0,1.10293398]
[1729696659139,0.00116317,66321.0,66320.0,1.09593398]
[1729696659376,0.00116317,66321.0,66320.0,1.09793398]
[1729696659623,0.00116317,66321.0,66320.0,1.10793398]
[1729696659847,0.001644,66323.0,66320.0,1.10793398]
[1729696659848,0.001644,66323.0,66322.0,0.290779]
[1729696660067,6.4e-05,66335.0,66334.0,0.32554623]
[1729696660300,6.4e-05,66335.0,66334.0,0.47605004]
[1729696661007,6.4e-05,66335.0,66334.0,0.15050381]
[1729696661243,6.4e-05,66335.0,66334.0,0.30125581]
[1729696661467,0.00667812,66335.0,66334.0,0.40916401]
[1729696661696,6.4e-05,66335.0,66334.0,0.40916401]
[1729696661936,6.4e-05,66335.0,66334.0,0.58395824]
[1729696668018,6.4e-05,66335.0,66334.0,0.78395824]
[1729696668251,6.4e-05,66335.0,66334.0,0.37479423]
[1729696668491,6.4e-05,66335.0,66334.0,0.2]
[1729696668492,0.150813,66335.0,66334.0,0.2]
[1729696668728,0.15746106,66335.0,66334.0,0.2]
[1729696668960,0.16857659,66335.0,66334.0,0.2]
[1729696670891,0.24468445,66335.0,66334.0,0.2]
[1729696671091,0.52998445,66335.0,66334.0,0.2]
[1729696671648,0.6043804,66335.0,66334.0,0.2]
[1729696671976,0.61040738,66335.0,66334.0,0.2]
[1729696672842,0.61040821,66335.0,66334.0,0.2]
[1729696673251,0.59929185,66335.0,66334.0,0.2]
[1729696673482,0.59929185,66335.0,66320.0,0.22629945]
[1729696673483,0.165781,66321.0,66320.0,0.22629945]
[1729696673705,0.79880432,66321.0,66320.0,0.22629945]
[1729696674129,0.79880432,66321.0,66320.0,0.000822]
[1729696674553,0.9867118,66321.0,66320.0,0.000822]
[1729696674756,0.80991757,66321.0,66320.0,0.000822]
[1729696675380,0.69269499,66321.0,66320.0,0.000822]
[1729696675599,0.58527424,66321.0,66320.0,0.000822]
[1729696675804,0.51858848,66321.0,66320.0,0.000822]
[1729696676021,0.56304764,66321.0,66320.0,0.000822]
[1729696676227,0.51858848,66321.0,66320.0,0.000822]
[1729696676867,0.56304764,66321.0,66320.0,0.000822]
[1729696677107,0.5630368,66321.0,66320.0,0.000822]
[1729696677322,0.51858848,66321.0,66320.0,0.000822]
[1729696677782,0.5630368,66321.0,66320.0,0.000822]
[1729696678156,0.51858848,66321.0,66320.0,0.000822]
[1729696680194,0.51357875,66321.0,66320.0,0.000822]
[1729696680410,0.50747523,66321.0,66320.0,0.000822]
[1729696680844,0.42557523,66321.0,66320.0,0.000822]
[1729696681268,0.43057523,66321.0,66320.0,0.000822]
[1729696681483,0.42557523,66321.0,66320.0,0.000822]
[1729696681697,0.43057523,66321.0,66320.0,0.000822]
[1729696682245,0.76100188,66321.0,66320.0,0.000822]
[1729696682393,0.81853869,66321.0,66320.0,0.000822]
[1729696682611,0.77210028,66321.0,66320.0,0.000822]
[1729696682827,0.76100188,66321.0,66320.0,0.000822]
[1729696683041,0.7720985,66321.0,66320.0,0.000822]
[1729696683281,1.00460231,66321.0,66320.0,0.000822]
[1729696683502,0.155795,66315.0,66314.0,0.000823]
[1729696683716,0.34168585,66315.0,66314.0,0.000823]
[1729696685005,0.72971248,66315.0,66314.0,0.000823]
[1729696685260,0.96033634,66315.0,66314.0,0.000823]
[1729696685736,0.84923205,66315.0,66314.0,0.000823]
[1729696685951,0.95890157,66315.0,66314.0,0.000823]
[1729696686397,0.94781322,66315.0,66314.0,0.000823]
[1729696686615,0.94581322,66315.0,66314.0,0.000823]
[1729696686834,1.06986488,66315.0,66314.0,0.000823]
[1729696687502,0.267802,66312.0,66304.0,0.22547745]
[1729696687721,0.81028889,66312.0,66304.0,0.22547745]
[1729696687937,0.93235322,66312.0,66304.0,0.22547745]
[1729696688168,0.93235758,66312.0,66304.0,0.22547745]
[1729696688866,0.93021039,66312.0,66304.0,0.22547745]
[1729696689093,0.93221111,66312.0,66304.0,0.22547745]
[1729696689349,0.81925568,66312.0,66304.0,0.22547745]
[1729696689561,0.90799479,66312.0,66304.0,0.22547745]
[1729696690231,0.90999479,66312.0,66304.0,0.22547745]
[1729696690440,0.65742305,66312.0,66304.0,0.22547745]
[1729696690648,0.90990096,66312.0,66304.0,0.22547745]
[1729696691496,0.82116185,66312.0,66304.0,0.22547745]
[1729696692155,0.65742305,66312.0,66304.0,0.22547745]
[1729696692586,0.72392412,66312.0,66304.0,0.22547745]
[1729696693432,0.72392412,66312.0,66304.0,0.22523359]
[1729696693433,0.015,66305.0,66304.0,0.22523359]
[1729696693665,0.34061223,66305.0,66304.0,0.22523359]
[1729696693879,0.34061223,66305.0,66297.0,0.22547745]
[1729696693880,0.150834,66298.0,66297.0,0.22547745]
[1729696694506,0.15084,66295.0,66294.0,0.0003934]
[1729696696675,0.38757664,66295.0,66294.0,0.0003934]
[1729696696894,0.51066552,66295.0,66294.0,0.0003934]
[1729696697117,0.82868045,66295.0,66294.0,0.0003934]
[1729696697351,0.82868045,66295.0,66290.0,0.0002]
[1729696697352,0.44264423,66291.0,66290.0,0.0002]
[1729696697634,0.44264423,66291.0,66282.0,0.22547745]
[1729696697635,0.167868,66283.0,66282.0,0.22547745]
[1729696697845,0.67186604,66283.0,66282.0,0.22547745]
[1729696698057,0.155879,66278.0,66272.0,0.000822]
[1729696698265,0.33067323,66278.0,66272.0,0.000822]
[1729696698477,0.37852895,66278.0,66272.0,0.000822]
[1729696698686,0.37852895,66278.0,66274.0,0.000822]
[1729696698687,0.64103276,66278.0,66274.0,0.000822]
[1729696699348,0.150904,66267.0,66266.0,0.22383139]
[1729696699561,0.32569823,66267.0,66266.0,0.22383139]
[1729696699803,0.33678876,66267.0,66266.0,0.22383139]
[1729696700007,0.15092,66260.0,66259.0,0.22547745]
[1729696700219,0.16201053,66260.0,66259.0,0.22547745]
[1729696700658,0.150926,66258.0,66253.0,0.083953]
[1729696700868,0.150926,66258.0,66255.0,0.15135681]
[1729696701322,0.301827,66263.0,66255.0,0.15135681]
[1729696701323,0.17479423,66257.0,66255.0,0.000853]
[1729696701544,0.17479423,66257.0,66256.0,0.22547745]
[1729696701753,0.31291852,66260.0,66255.0,0.000853]
[1729696701956,0.150929,66256.0,66255.0,0.000853]
[1729696704079,0.01106228,66257.0,66255.0,0.000853]
[1729696704290,0.150929,66256.0,66255.0,0.000853]
[1729696706165,0.01105736,66258.0,66255.0,0.000853]
[1729696706378,0.301841,66260.0,66255.0,0.000853]
[1729696706379,0.01105736,66259.0,66255.0,0.000853]
[1729696706593,0.01105736,66259.0,66256.0,0.15050381]
[1729696706807,0.01104859,66263.0,66256.0,0.15050381]
[1729696707015,0.150916,66262.0,66256.0,0.15050381]
[1729696707216,0.452731,66265.0,66256.0,0.15050381]
[1729696707448,0.01604827,66266.0,66256.0,0.15050381]
[1729696707449,0.01104827,66264.0,66256.0,0.15050381]
[1729696707663,0.15089,66274.0,66263.0,0.150911]
[1729696707861,0.17479423,66284.0,66260.0,0.17479423]
[1729696707862,0.22547745,66272.0,66264.0,0.3044317]
[1729696708102,0.17479423,66284.0,66261.0,0.1781]
[1729696708103,0.001648,66291.0,66281.0,0.1781]
[1729696708331,0.001648,66291.0,66282.0,0.00301701]
[1729696708560,0.001648,66291.0,66286.0,0.17479423]
[1729696708789,0.15087,66282.0,66281.0,0.1781]
[1729696709068,0.001648,66291.0,66272.0,0.150893]
[1729696709069,0.301718,66287.0,66272.0,0.150893]
[1729696709284,0.150872,66282.0,66271.0,0.328995]
[1729696709497,0.150874,66281.0,66271.0,0.328995]
[1729696709707,0.150876,66280.0,66271.0,0.1781]
[1729696709924,0.150874,66281.0,66271.0,0.1781]
[1729696710159,0.150874,66281.0,66271.0,0.328995]
[1729696710381,0.30175,66280.0,66272.0,0.15050381]
[1729696710612,0.30175,66280.0,66263.0,0.0766]
[1729696710613,0.17479423,66280.0,66268.0,0.22547745]
[1729696710822,0.17479423,66280.0,66269.0,0.15050381]
[1729696710823,0.150897,66270.0,66269.0,0.15050381]
[1729696711048,0.452631,66279.0,66263.0,0.0766]
[1729696711270,0.03064774,66279.0,66264.0,0.15050381]
[1729696711490,0.301759,66278.0,66264.0,0.15050381]
[1729696711763,0.17479423,66276.0,66264.0,0.15050381]
[1729696711983,0.301799,66270.0,66264.0,0.15050381]
[1729696712673,0.150902,66268.0,66264.0,0.15050381]
[1729696713119,0.150908,66266.0,66261.0,0.0903]
[1729696713347,0.301806,66268.0,66262.0,0.22547745]
[1729696713579,0.005,66279.0,66263.0,0.150912]
[1729696713798,0.301777,66274.0,66264.0,0.15050381]
[1729696714011,0.005,66279.0,66264.0,0.15050381]
[1729696714012,0.01107202,66273.0,66264.0,0.15050381]
[1729696714237,0.301786,66272.0,66264.0,0.15050381]
[1729696714455,0.005,66275.0,66264.0,0.15050381]
[1729696714678,0.150898,66270.0,66264.0,0.15050381]
[1729696714893,0.01107604,66271.0,66264.0,0.15050381]
[1729696715125,0.1509,66269.0,66264.0,0.15050381]
[1729696715354,0.01107604,66271.0,66264.0,0.15050381]
[1729696715355,0.31286704,66271.0,66264.0,0.15050381]
[1729696715571,0.1509,66269.0,66264.0,0.15050381]
[1729696716001,0.01107604,66270.0,66264.0,0.30141281]
[1729696716230,0.150896,66271.0,66265.0,0.150909]
[1729696716448,0.01107604,66272.0,66265.0,0.15050381]
[1729696716660,0.1509,66269.0,66265.0,0.15050381]
[1729696717121,0.3018,66269.0,66265.0,0.15050381]
[1729696717344,0.16197904,66268.0,66265.0,0.15050381]
[1729696717560,0.301791,66271.0,66265.0,0.15050381]
[1729696717561,0.150906,66266.0,66265.0,0.15050381]
[1729696717823,0.301855,66257.0,66253.0,0.000853]
[1729696718042,0.150929,66256.0,66255.0,0.22633045]
[1729696718310,0.01108016,66256.0,66255.0,0.22633045]
[1729696718533,0.301855,66257.0,66255.0,0.000853]
[1729696718534,0.150928,66257.0,66255.0,0.000853]
[1729696718788,0.150929,66256.0,66255.0,0.000853]
[1729696719013,0.16200999,66256.0,66255.0,0.000853]
[1729696719682,0.150929,66256.0,66255.0,0.000853]
[1729696720336,0.01108099,66257.0,66255.0,0.000853]
[1729696720556,0.01108099,66261.0,66256.0,0.15050381]
[1729696720788,0.1,66262.0,66256.0,0.15050381]
[1729696721001,0.01108099,66262.0,66256.0,0.15050381]
[1729696721211,0.150918,66261.0,66256.0,0.15050381]
[1729696721458,0.16199899,66261.0,66256.0,0.15050381]
[1729696721926,0.01108099,66261.0,66256.0,0.15050381]
[1729696722142,0.16199999,66261.0,66256.0,0.15050381]
[1729696722359,0.150919,66261.0,66256.0,0.15050381]
[1729696722789,0.150921,66260.0,66256.0,0.15050381]
[1729696723007,0.15092,66260.0,66256.0,0.15050381]
[1729696723224,0.301836,66261.0,66256.0,0.15050381]
[1729696723438,0.150927,66257.0,66256.0,0.15050381]
[1729696723861,0.16200799,66257.0,66256.0,0.15050381]
[1729696725960,0.1620231,66257.0,66256.0,0.15050381]
[1729696726388,0.150929,66256.0,66255.0,0.000853]
[1729696726840,0.16202506,66256.0,66255.0,0.000853]
[1729696729612,0.150929,66256.0,66255.0,0.000853]
[1729696729828,0.1620287,66256.0,66255.0,0.000853]
[1729696730703,0.44594297,66256.0,66255.0,0.000853]
[1729696730942,0.33682293,66256.0,66255.0,0.000853]
[1729696731155,0.33664132,66256.0,66255.0,0.000853]
[1729696731649,0.45364132,66256.0,66255.0,0.000853]
[1729696732323,0.267934,66254.0,66253.0,0.000853]
[1729696732540,0.017,66253.0,66252.0,0.00067415]
[1729696732753,0.56894362,66253.0,66252.0,0.00067415]
[1729696732970,0.7768888,66253.0,66252.0,0.00067415]
[1729696733205,0.7768888,66253.0,66248.0,0.000854]
[1729696733206,0.267941,66251.0,66248.0,0.000854]
[1729696733414,0.267941,66251.0,66247.0,0.00068796]
[1729696733415,0.017,66248.0,66247.0,0.00068796]
[1729696733651,0.57602542,66248.0,66247.0,0.00068796]
[1729696733870,0.90365659,66248.0,66247.0,0.00068796]
[1729696734090,0.26597,66238.0,66237.0,0.21888831]
[1729696734306,0.27981526,66238.0,66237.0,0.21888831]
[1729696734526,0.27981526,66238.0,66215.0,0.0819]
[1729696734527,0.150986,66231.0,66215.0,0.0819]
[1729696734770,0.16483126,66231.0,66218.0,0.17479423]
[1729696734977,0.150996,66227.0,66218.0,0.17479423]
[1729696735197,0.01384526,66226.0,66224.0,0.15050381]
[1729696735413,0.16484126,66227.0,66224.0,0.15050381]
[1729696735844,0.150998,66226.0,66224.0,0.15050381]
[1729696736081,0.150995,66227.0,66224.0,0.15050381]
[1729696736306,0.150998,66226.0,66224.0,0.15050381]
[1729696736538,0.150999,66226.0,66224.0,0.15050381]
[1729696736769,0.301987,66228.0,66224.0,0.15050381]
[1729696736770,0.151,66225.0,66224.0,0.15050381]
[1729696738180,0.151002,66224.0,66215.0,0.0819]
[1729696738400,0.16481507,66224.0,66215.0,0.08492014]
[1729696738630,0.16481507,66224.0,66215.0,0.0819]
[1729696738859,0.1758656,66224.0,66215.0,0.0819]
[1729696740032,0.1758656,66224.0,66215.0,0.08492014]
[1729696740253,0.17585875,66224.0,66215.0,0.0819]
[1729696740481,0.1758532,66224.0,66215.0,0.0819]
[1729696741434,0.0248512,66224.0,66223.0,0.15135781]
[1729696741658,0.02485439,66229.0,66223.0,0.15135781]
[1729696741878,0.301966,66233.0,66224.0,0.15050381]
[1729696741879,0.150989,66230.0,66224.0,0.15050381]
[1729696742313,0.150989,66230.0,66224.0,0.14981661]
[1729696742564,0.150989,66230.0,66224.0,0.16518565]
[1729696742793,0.02485958,66232.0,66224.0,0.14981661]
[1729696743006,0.01104817,66232.0,66224.0,0.14981661]
[1729696743229,0.150986,66231.0,66224.0,0.15283634]
[1729696743451,0.01104817,66232.0,66225.0,0.0947]
[1729696743670,0.16203217,66232.0,66226.0,0.15050381]
[1729696743930,0.301965,66233.0,66226.0,0.15050381]
[1729696744149,0.150989,66230.0,66226.0,0.15050381]
[1729696744839,0.16203417,66232.0,66226.0,0.15050381]
[1729696745056,0.01104817,66232.0,66226.0,0.15050381]
[1729696745722,0.301945,66238.0,66226.0,0.15050381]
[1729696745723,0.52739345,66244.0,66226.0,0.15050381]
[1729696745937,0.150973,66237.0,66227.0,0.08601961]
[1729696746174,0.150967,66240.0,66228.0,0.15050381]
[1729696746370,0.150967,66240.0,66228.0,0.15352323]
[1729696746588,0.150959,66243.0,66228.0,0.15352323]
[1729696746804,0.22547745,66244.0,66228.0,0.15352323]
[1729696747024,0.301923,66242.0,66229.0,0.22547745]
[1729696747246,0.01105833,66243.0,66230.0,0.15352319]
[1729696747472,0.150971,66238.0,66230.0,0.15352319]
[1729696747715,0.301927,66241.0,66230.0,0.15352319]
[1729696747716,0.150969,66239.0,66230.0,0.15352319]
[1729696747928,0.452892,66241.0,66230.0,0.15352319]
[1729696748141,0.150968,66239.0,66230.0,0.15352319]
[1729696748371,0.01105833,66243.0,66235.0,0.17479423]
[1729696748612,0.01105833,66243.0,66237.0,0.0903]
[1729696748826,0.01105833,66243.0,66238.0,0.15050381]
[1729696749508,0.01105833,66243.0,66239.0,0.26051316]
[1729696749737,0.22547745,66267.0,66241.0,0.15050381]
[1729696749981,0.22547745,66251.0,66250.0,0.17479423]
[1729696750265,0.301824,66264.0,66250.0,0.15050381]
[1729696750266,0.301837,66261.0,66250.0,0.15050381]
[1729696750468,0.301845,66259.0,66251.0,0.1535223]
[1729696750684,0.005,66274.0,66254.0,0.17479423]
[1729696750898,0.005,66274.0,66252.0,0.30607745]
[1729696750899,0.150924,66259.0,66255.0,0.15050381]
[1729696751122,0.150922,66259.0,66255.0,0.15050381]
[1729696751348,0.301807,66268.0,66255.0,0.15050381]
[1729696751604,0.301813,66266.0,66256.0,0.00301825]
[1729696751841,0.301823,66264.0,66257.0,0.15050381]
[1729696752096,0.150912,66264.0,66257.0,0.15050381]
[1729696752344,0.001648,66272.0,66258.0,0.00301825]
[1729696752564,0.150909,66265.0,66259.0,0.15050381]
[1729696752786,0.150903,66268.0,66259.0,0.15352193]
[1729696753007,0.301795,66270.0,66259.0,0.15352193]
[1729696753235,0.150908,66266.0,66259.0,0.15050381]
[1729696753457,0.301795,66270.0,66260.0,0.00301809]
[1729696753689,0.150906,66267.0,66261.0,0.15050381]
[1729696754171,0.150903,66268.0,66261.0,0.15050381]
[1729696754403,0.150906,66267.0,66261.0,0.15050381]
[1729696754640,0.150909,66265.0,66261.0,0.15050381]
[1729696754908,0.150916,66262.0,66261.0,0.15050381]
[1729696756413,0.17644223,66272.0,66261.0,0.15050381]
[1729696756637,0.150911,66265.0,66261.0,0.15050381]